Cogmind - Beta 12 @@@ ROGUE MODE // 2024.02.22 @ 23:26:21 Player: ToasterKoishi Result: Destroyed by G-47 Trooper with Particle Gun Performance ------------- Evolutions (0) 0 Regions Visited (1) 200 Robots Destroyed (19) 95 Value Destroyed (533) 533 Prototype IDs (0) 0 Alien Tech Used (0) 0 Bonus (0) 0 TOTAL SCORE: 828 Bonus ------- None Cogmind --------- Core Integrity 0/250 Matter 280/300 Energy 100/100 System Corruption 0% Temperature Cool (9) Movement Core (1350) Ox26 Location -10/Materials Parts ------- > --- POWER (1) -------- (None) > --- PROPULSION (2) --- Aluminum Leg > --- UTILITY (2) ------ Huge Storage Unit Targeting Computer > --- WEAPON (2) ------- Light Assault Rifle > --- INVENTORY (25) --- Ion Engine Wheel Heat Sink Huge Storage Unit High-capacity Matter Pod (107) Terrain Scanner Targeting Computer Weapon Shielding Peak State ------------ > --- POWER ------------ Light Ion Engine > --- PROPULSION ------- Light Treads Compact Wheel > --- UTILITY ---------- Huge Storage Unit Seismic Detector > --- WEAPON ----------- Medium Laser Light Assault Rifle > --- INVENTORY -------- Wheel Wheel Small Storage Unit Huge Storage Unit Terrain Scanner Targeting Computer Targeting Computer Weapon Shielding Small Laser Beam Cannon [Rating: 8] Favorites ----------- Power Light Ion Engine Engine Light Ion Engine Propulsion Compact Wheel Treads Light Treads Leg Aluminum Leg Wheel Compact Wheel Utility Huge Storage Unit Device Seismic Detector Storage Huge Storage Unit Processor Targeting Computer Weapon Light Assault Rifle Energy Gun Medium Laser Energy Cannon Beam Cannon Ballistic Gun Light Assault Rifle Build | -11 -10 ------- Run | Jun Mat Slots Evolved . | . . Power . | . . Propulsion . | . . Utility . | . . Weapon . | . . Parts Attached 24 | 7 17 Power 3 | 1 2 Engine 3 | 1 2 Core . | . . Reactor . | . . Propulsion 7 | 2 5 Treads 3 | 2 1 Leg 1 | . 1 Wheel 3 | . 3 Hover . | . . Flight . | . . Utility 4 | 2 2 Device 1 | 1 . Storage 2 | 1 1 Processor 1 | . 1 Hackware . | . . Protection . | . . Artifact . | . . Weapon 10 | 2 8 Energy Gun 5 | 2 3 Energy Cannon 1 | . 1 Ballistic Gun 4 | . 4 Ballistic Cannon . | . . Launcher . | . . Special Weapon . | . . Impact Weapon . | . . Slashing Weapon . | . . Piercing Weapon . | . . Special Melee Weapon . | . . Unidentified Prototypes . | . . Parts Lost 10 | . 10 Power 3 | . 3 Propulsion 4 | . 4 Utility 1 | . 1 Weapon 2 | . 2 Highest Loss Streak 3 | . 3 To Critical Strikes . | . . Average Slot Usage (%) 92 | . 92 Engine 13 | . 13 Treads 9 | . 9 Wheel 13 | . 13 Device 7 | . 7 Storage 14 | . 14 Processor 5 | . 5 Energy Gun 10 | . 10 Energy Cannon 3 | . 3 Ballistic Gun 13 | . 13 Naked Turns . | . . Heaviest Build 89 | 12 89 Greatest Support 40 | 40 40 Greatest Overweight (x) 8 | 1 8 Average Overweight (x) 4 | . 4 Largest Inventory Capacity 25 | 8 25 Average Capacity 23 | 7 24 Most Carried 12 | 3 12 Average Carried 8 | 2 8 Final Capacity 25 | 8 25 Final Carried 8 | 3 8 Class Distribution -------------------- 100% | Mutant Dominant Class ---------------- Mutant | -10/Materials Resources | -11 -10 ----------- Run | Jun Mat Matter Collected 643 | 250 393 Remotely . | . . Salvage Created 636 | 24 612 Parts 30 | 3 27 Haulers Intercepted . | . . Recyclers Shooed 1 | . 1 Parts Field Recycled . | . . Retrieved Matter . | . . Parts Self-Destructed . | . . Prevented . | . . Kills | -11 -10 ------- Run | Jun Mat Combat Hostiles Destroyed 17 | . 17 Guns 16 | . 16 Cannons 1 | . 1 Classes Destroyed 3 | 1 2 Tunneler 2 | 2 . Swarmer 3 | . 3 Grunt 14 | . 14 Best Kill Streak 3 | 2 3 Combat Bots Only 3 | . 3 Max Kills in Single Turn 1 | 1 1 Gunslinging . | . . Exploded . | . . Melee . | . . Uniques/NPCs Destroyed . | . . Combat | -11 -10 -------- Run | Jun Mat Damage Taken 1072 | . 1072 Core 260 | . 260 Absorbed by Shields . | . . Core Remaining (%) 100 | 100 . Volleys Fired 86 | 8 78 Largest 2 | 2 2 Hottest 110 | 90 110 Shots Fired 151 | 16 135 Gun 143 | 16 127 Cannon 8 | . 8 Launcher . | . . Special . | . . Kinetic 98 | . 98 Thermal 53 | 16 37 Explosive . | . . Electromagnetic . | . . Robot Hit Streak 15 | 8 15 Robot Miss Streak 10 | 2 10 Penetration Max . | . . Secondary Targets 2 | . 2 Max Gunslinging Chain 1 | . 1 Shots Hit Robots 102 | 9 93 Core Hits 38 | 1 37 Critical Kills . | . . Critical Parts Destroyed . | . . Critical Strikes 3 | 2 1 Burn 3 | 2 1 Melee Attacks . | . . Impact . | . . Slashing . | . . Piercing . | . . Sneak Attacks . | . . Combat Hostiles . | . . Follow-up Attacks . | . . Damage Inflicted 1052 | 119 933 Guns 950 | 119 831 Cannons 102 | . 102 Explosions . | . . Melee . | . . Ramming . | . . Kinetic 639 | . 639 Thermal 413 | 119 294 Explosive . | . . Electromagnetic . | . . Impact . | . . Slashing . | . . Piercing . | . . Highest Corruption . | . . Average Corruption . | . . Corruption Purged . | . . Corruption Blocked . | . . Overload Shots . | . . Overflow Damage . | . . Projectiles . | . . Explosions . | . . Melee . | . . Knockbacks . | . . Impact . | . . Kinetic . | . . Secondary . | . . Self-Inflicted Damage . | . . Shots . | . . Rammed . | . . Targets Rammed . | . . Kicked . | . . Crushed . | . . Highest Temperature 320 | 120 320 Average Temperature 86 | 61 91 Received Heat Transfer 516 | . 516 Effects 3 | . 3 Shutdowns 1 | . 1 Interference 1 | . 1 Short Circuit 1 | . 1 Siege Activations . | . . Robots Corrupted . | . . Combat Hostiles . | . . Parts Fried . | . . Impact Corruptions . | . . Robots Melted 1 | 1 . Combat Hostiles . | . . Parts Melted 5 | 2 3 Heat Transferred 1286 | 458 828 Parts Sabotaged . | . . Parts Stolen . | . . Parts Stripped . | . . Power Chain Reactions . | . . Missiles Intercepted . | . . Alert | -11 -10 ------- Run | Jun Mat Peak Influence 155 | 10 155 Initial 6 | . 6 Average 44 | 4 48 Maximum Alert Level . | . . Low Security (%) 100 | 100 100 Level 1 . | . . Level 2 . | . . Level 3 . | . . Level 4 . | . . Level 5 . | . . High Security . | . . Max Security . | . . Squads Dispatched 6 | . 6 Investigation 4 | . 4 Extermination . | . . Reinforcement 2 | . 2 Assault . | . . Garrison . | . . Intercept . | . . Searches Triggered . | . . Construction Impeded . | . . Haulers Reinforced . | . . Active Scanning Responses . | . . Cargo Convoy Interrupts . | . . Stealth | -11 -10 --------- Run | Jun Mat Distress Signals 5 | . 5 Communications Jammed . | . . Distress Signals . | . . Times Spotted 27 | . 27 Peak Tracking Total 4 | . 4 Tactical Retreats 1 | . 1 Traps | -11 -10 ------- Run | Jun Mat Traps Triggered 4 | . 4 Indirectly . | . . Trap Hack Attempts . | . . Triggered . | . . Disarmed . | . . Reprogrammed . | . . Reused . | . . Traps Extracted . | . . Installed . | . . Triggered . | . . Machines | -11 -10 ---------- Run | Jun Mat Machines Disabled . | . . Max in Single Turn . | . . Machines Repaired . | . . Machines Sabotaged . | . . Overloaded Fab Kills . | . . Hacking | -11 -10 --------- Run | Jun Mat Machines Accessed 6 | . 6 Terminals 6 | . 6 Fabricators . | . . Repair Stations . | . . Recycling Units . | . . Scanalyzers . | . . Garrison Access . | . . Total Hacks 15 | . 15 Successful 3 | . 3 Failed 12 | . 12 Catastrophic 3 | . 3 Database Lockouts . | . . Manual 2 | . 2 Terminals 15 | . 15 Fabricators . | . . Repair Stations . | . . Recycling Units . | . . Scanalyzers . | . . Garrison Access . | . . Terminal Hacks 3 | . 3 Alert Level 1 | . 1 Unreport Threat 1 | . 1 Transport Status 1 | . 1 Fabricator Hacks . | . . Repair Station Hacks . | . . Recycling Unit Hacks . | . . Scanalyzer . | . . Garrison Access Hacks . | . . Unauthorized Hacks . | . . Terminals . | . . Fabricators . | . . Repair Stations . | . . Recycling Units . | . . Scanalyzers . | . . Garrison Access . | . . Data Cores Recovered . | . . Used . | . . Hacking Detections 6 | . 6 Full Trace Events 1 | . 1 Feedback Events . | . . Feedback Blocked . | . . Robot Schematics Acquired . | . . Robots Built . | . . Authchips . | . . Time . | . . Total Robot Build Rating . | . . Part Schematics Acquired . | . . Parts Built . | . . Authchips . | . . Time . | . . Total Part Build Rating . | . . Parts Repaired . | . . Time . | . . Parts Recycled . | . . Recycled Matter . | . . Retrieved Matter . | . . Retrieved Components . | . . Parts Scanalyzed . | . . Part Schematics Acquired . | . . Parts Damaged . | . . Bothacking | -11 -10 ------------ Run | Jun Mat Used RIF Installer . | . . Robots Hacked . | . . Non-combat . | . . Combat . | . . Robot Hacks Applied . | . . Relay Couplers Released . | . . Fabnet Peak Effective % . | . . Robots Rewired . | . . Allies Hacked . | . . Hacks Repelled . | . . Allies | -11 -10 -------- Run | Jun Mat Total Allies . | . . Largest Group . | . . Highest-Rated Group . | . . Highest-Rated Ally . | . . Total Orders . | . . Ally Attacks . | . . Total Damage . | . . Kills . | . . Allies Corrupted . | . . Allies Melted . | . . Intel | -11 -10 ------- Run | Jun Mat Robot Analysis Total . | . . Derelict Logs Recovered . | . . Drone Launches . | . . Drone Recoveries . | . . Exploration | -11 -10 ------------- Run | Jun Mat Turns Passed 1407 | 122 1285 Spaces Moved 599 | 57 542 Core 8 | 8 . Treads 55 | 49 6 Legs . | . . Wheels 536 | . 536 Hover . | . . Flight . | . . Fastest Speed 50 | 50 160 Average Speed 172 | 148 175 Slowest Speed 200 | 160 200 Overloaded Moves . | . . Propulsion Burnouts . | . . Robots Hopped . | . . Cave-ins Triggered . | . . Exploration Rate (%) 48 | 4 92 Regions Visited 1 Branch Regions . Pre-discovered Areas . | . . Known Exits Taken . | . . Unknown Exits Taken 1 | 1 . Scrap Searched . | . . Spaces Dug . | . . Terrain Destroyed . | . . Melee . | . . Projectile . | . . AOE . | . . Terrain Rammed . | . . Walls Destroyed . | . . Machines Disabled . | . . Actions | -11 -10 --------- Run | Jun Mat Total 832 | 75 757 Wait 100 | 1 99 Move 598 | 56 542 Hop . | . . Pick Up 17 | 3 14 Fast Attach 11 | 7 4 Attach 6 | . 6 Detach 1 | . 1 Swap 7 | . 7 Drop 6 | . 6 Fire 86 | 8 78 Melee . | . . Ram . | . . Kick . | . . Crush . | . . Escape Stasis . | . . Rewire . | . . Trap . | . . Miscellaneous . | . . Route ------- -11/Junkyard -10/Materials (discovered 4 exits: [*Mat x3] / [*Min]) History --------- Turn | Location | Event 11 | -11/Junkyard | Discovered new exit (range 15) 123 | -11/Junkyard | Entered Materials 225 | -10/Materials | Discovered new exit (range 15) 313 | -10/Materials | Build established: Mutant 657 | -10/Materials | Discovered new exit (range 11) 945 | -10/Materials | Discovered new exit (range 9) 1087 | -10/Materials | Core integrity fell below 50% 1179 | -10/Materials | Discovered new exit (range 13) 1365 | -10/Materials | Core integrity fell below 20% 1397 | -10/Materials | Lost 3 parts (1p2n) 1408 | -10/Materials | Destroyed by G-47 Trooper with Particle Gun Last Messages --------------- 01302_ Acquired Hcp. Matter Pod. 01303_ Dropped Sml. Matter Pod. 01305_ Extracted 36 matter. 01332_ W-16 Scout sends out distress signal. 01344_ Lgt. Ion Engine destroyed. 01345_ G-34 Mercenary destroyed. 01347_ Lgt. Treads destroyed. 01359_ G-34 Mercenary destroyed. 01359_ Switching to secondary target: G-34 Mercenary. 01366_ Com. Wheel destroyed. 01370_ G-34 Mercenary destroyed. 01376_ Acquired 43 matter. 01378_ Acquired 31 matter. 01380_ W-16 Scout sends out distress signal. 01380_ Acquired 50 matter. 01384_ Acquired Aluminum Leg. 01395_ G-34 Mercenary destroyed. 01398_ Assault Rifle destroyed. 01401_ Dropped Lgt. Assault Rifle. 01406_ Wheel destroyed. Map ----- +----------------------------------------------------+ | ??? #????????????# """ #????????? | | ?? #????????????# """ #????????? | | ? #????????????# """ #?######?? | | ? #????????????# #?# # | | # #?????????????# #?# """ # | | #?????????????# """ #?# """ # | | ############??# """ #?# """ # | | ?? """ ### # | | ? """ # """ # | | """ """ """ + """ # | | """ """ ? # """ # | | """ """ ?? # # | | #??#### ###### # """ # | | #?????# ?????# # """ # | | """ """ #?????# ######+# """ # | | """ """ #?????# ?# # # | | """ """ #?????# ?# ######?? | | #?????# ??# #??????? | | #?????# ??# #??????? | | """ """ #?????# ?# #??????? | | """ """ #?????# # ######## | | """ """ #?????# ##+###+# T ! # | | #?????+ + # | | #?????# % # """ # | | """ """ #?????# #####g## + """ # | | """ """ #????????# [@k=# # """ *# | | """ """ #????????+ =w=# # # | | #????????# ########### | | #????????# #?????????? | | #############????????# #?????????? | | #????????????????????# #?????????? | | #????????????????????########?????????? | | #?????????????????????????????????????? | | ??????????????????????????????????????? | | ??????????????????????????????????????? | | ??????????????????????????????????????? | | ??????????????????????????????????????? | | ??????????????????????????????????????? | | | | | | | | | | | | | | | | | | | | | | | | | +----------------------------------------------------+ Best States ------------- Heat Dissipation 25 Energy Generation 10 Energy Capacity 125 Matter Stores 300 Matter Capacity 300 Sight Range 16 Terrain Scan Density 10 Evasion (%) 40 Targeting Accuracy 5 Recoil Reduction 2 Item Schematics ----------------- None Robot Schematics ------------------ None Fabricated ------------ Nothing Alien Tech Used ----------------- None Achievements -------------- None Challenges ------------ None Game ------ Seed MiningPotentialCoupler Manual? 0 Play Time 00:25:36 Cumulative 38.5 hours Start 2024.02.22 @ 23:11:55 End 2024.02.22 @ 23:26:21 Sessions 1 Manual Loads 0 Difficulty Rogue Special Mode None Game No. 27 Rogue 27 Adventurer 0 Explorer 0 Win Type - Total 2 Types 1/0/1/0/0/0/0/0/0 Lore% 39 Gallery% 27 Achievement% 32 Wizard Run 0 Options --------- ASCII 0 Keyboard 1 Movement Mouse Keybinds 0 Fullscreen 2 Font 18/SmallcapsGlow Map View 112x50 Tactical HUD 1 Map Filters NONE Filters NONE Steam 1 RUN: 7ce9cdf5-f3f9-4058-b917-2f7491afccca